bitfinex/quotes_BTCUSD_20251004
["timestamp","ask_amount","ask_price","bid_price","bid_amount"]
[1759571633215,0.16365272,122210.0,122200.0,0.37411437]
[1759571633611,0.2748168,122220.0,122200.0,0.53778049]
[1759571633812,0.16365272,122210.0,122200.0,0.38960863]
[1759571634651,0.16365272,122210.0,122200.0,0.39360863]
[1759571634912,0.16365272,122210.0,122200.0,0.39660863]
[1759571635139,0.16365272,122210.0,122200.0,0.38960863]
[1759571635338,0.16365272,122210.0,122200.0,0.39360863]
[1759571635538,0.16365272,122210.0,122200.0,0.39660863]
[1759571638368,0.16365272,122210.0,122200.0,0.39681263]
[1759571638769,0.16574272,122210.0,122200.0,0.39681263]
[1759571640931,0.19372813,122210.0,122200.0,0.39681263]
[1759571643043,0.19372813,122210.0,122200.0,0.38131837]
[1759571644689,0.19066813,122210.0,122200.0,0.38131837]
[1759571645093,0.19372813,122210.0,122200.0,0.38131837]
[1759571645495,0.19066813,122210.0,122200.0,0.38131837]
[1759571647763,0.19066813,122210.0,122200.0,0.54498449]
[1759571648384,0.19066813,122210.0,122200.0,0.38131837]
[1759571649020,0.18857813,122210.0,122200.0,0.38131837]
[1759571649219,0.02492541,122210.0,122200.0,0.50067786]
[1759571649644,0.02492541,122210.0,122200.0,0.52523273]
[1759571655243,0.02492541,122210.0,122200.0,0.56952687]
[1759571655462,0.02492541,122210.0,122200.0,0.25428687]
[1759571655720,0.02492541,122210.0,122200.0,0.56952687]
[1759571656059,0.02696541,122210.0,122200.0,0.09062075]
[1759571656302,0.19367813,122210.0,122200.0,0.56952687]
[1759571656695,0.19061813,122210.0,122200.0,0.56952687]
[1759571657119,0.19367813,122210.0,122200.0,0.32082075]
[1759571657316,0.19367813,122210.0,122200.0,0.38130588]
[1759571658326,0.19367813,122210.0,122200.0,0.06606588]
[1759571658524,0.19367813,122210.0,122200.0,0.38130588]
[1759571659137,0.19367813,122210.0,122200.0,0.06606588]
[1759571659335,0.19367813,122210.0,122200.0,0.38130588]
[1759571659581,0.19367813,122210.0,122200.0,0.06606588]
[1759571659774,0.19367813,122210.0,122200.0,0.38130588]
[1759571660320,0.19367813,122210.0,122200.0,0.06606588]
[1759571660521,0.27680019,122210.0,122200.0,0.38130588]
[1759571660973,0.27680019,122210.0,122200.0,0.06606588]
[1759571661359,0.27680019,122210.0,122200.0,0.38130588]
[1759571662599,0.27680019,122210.0,122200.0,0.29626588]
[1759571662814,0.27680019,122210.0,122200.0,0.38130588]
[1759571663109,0.30135693,122210.0,122200.0,0.38130588]
[1759571663976,0.30135693,122210.0,122200.0,0.29626588]
[1759571664169,0.30135693,122210.0,122200.0,0.38130588]
[1759571664908,0.30135693,122210.0,122200.0,0.37830588]
[1759571665122,0.30235693,122210.0,122200.0,0.37830588]
[1759571665524,0.30235693,122210.0,122200.0,0.37430588]
[1759571665931,0.30235693,122210.0,122200.0,0.37730588]
[1759571666425,0.30235693,122210.0,122200.0,0.37430588]
[1759571666840,0.27780019,122210.0,122200.0,0.37430588]
[1759571670599,0.30235693,122210.0,122200.0,0.37430588]
[1759571674687,0.30235693,122210.0,122200.0,0.05906588]
[1759571674896,0.30235693,122210.0,122200.0,0.37430588]
[1759571676950,0.30235693,122210.0,122200.0,0.315444]
[1759571680729,0.30235693,122210.0,122200.0,0.000204]
[1759571680931,0.30235693,122210.0,122200.0,0.315444]
[1759571681847,0.30235693,122210.0,122200.0,0.000204]
[1759571682053,0.30235693,122210.0,122200.0,0.315444]
[1759571683641,0.30235693,122210.0,122200.0,0.230404]
[1759571683866,0.30235693,122210.0,122200.0,0.315444]
[1759571685333,0.30235693,122210.0,122200.0,0.000204]
[1759571685563,0.30235693,122210.0,122200.0,0.315444]
[1759571685987,0.30235693,122210.0,122200.0,0.000204]
[1759571686201,0.30235693,122210.0,122200.0,0.35957406]
[1759571687059,0.30235693,122210.0,122200.0,0.04433406]
[1759571687490,0.30235693,122210.0,122200.0,0.315524]
[1759571689387,0.30135693,122210.0,122200.0,0.315524]
[1759571689808,0.30135693,122210.0,122200.0,0.316524]
[1759571689809,0.30535693,122210.0,122200.0,0.316524]
[1759571690416,0.30835693,122210.0,122200.0,0.316524]
[1759571694330,0.30529693,122210.0,122200.0,0.316524]
[1759571694880,0.30325693,122210.0,122200.0,0.3716417]
[1759571696553,0.30520693,122210.0,122200.0,0.3716417]
[1759571696996,0.30520693,122210.0,122200.0,0.14096029]
[1759571697401,0.30833693,122210.0,122200.0,0.14096029]
[1759571698058,0.30833693,122210.0,122200.0,0.37128029]
[1759571698824,0.30520693,122210.0,122200.0,0.37128029]
[1759571701300,0.30833693,122210.0,122200.0,0.37128029]
[1759571705151,0.57608987,122210.0,122200.0,0.37128029]
[1759571705559,0.57608987,122210.0,122200.0,0.05592029]
[1759571705788,0.57608987,122210.0,122200.0,0.3876469]
[1759571705965,0.57608987,122210.0,122200.0,0.37128029]
[1759571706392,0.57608987,122210.0,122200.0,0.28624029]
[1759571706597,0.57608987,122210.0,122200.0,0.37124029]
[1759571708154,0.57608987,122210.0,122200.0,0.04493265]
[1759571708379,0.57608987,122210.0,122200.0,0.36025265]
[1759571715565,0.57608987,122210.0,122200.0,0.04493265]
[1759571715773,0.57608987,122210.0,122200.0,0.36025265]
[1759571725702,0.57608987,122210.0,122200.0,0.27517265]
[1759571725913,0.57608987,122210.0,122200.0,0.04493265]
[1759571726140,0.57608987,122210.0,122200.0,0.36021265]
[1759571743309,0.57608987,122210.0,122200.0,0.31608259]
[1759571746298,0.57608987,122210.0,122200.0,0.23104259]
[1759571746501,0.57608987,122210.0,122200.0,0.31608259]
[1759571752707,0.30833693,122210.0,122200.0,0.31608259]
[1759571758781,0.57608987,122210.0,122200.0,0.31608259]
[1759571760912,0.57608987,122210.0,122200.0,0.36023562]
[1759571761289,0.05648215,122210.0,122200.0,0.48902493]
[1759571761504,0.19557813,122210.0,122200.0,0.38422069]
[1759571763547,0.03192541,122210.0,122200.0,0.54788681]
[1759571769809,0.03192541,122210.0,122200.0,0.14539367]
[1759571770038,0.03192541,122210.0,122200.0,0.20586146]
[1759571770246,0.03192541,122210.0,122200.0,0.18949485]
[1759571770649,0.03192541,122210.0,122200.0,0.12914118]
[1759571770857,0.03192541,122210.0,122200.0,0.14550779]
[1759571771060,0.03192541,122210.0,122200.0,0.53937391]
[1759571771248,0.03192541,122210.0,122200.0,0.5230073]
[1759571772426,0.03192541,122210.0,122200.0,0.35934118]
[1759571774173,0.03192541,122210.0,122200.0,0.04410118]
[1759571774405,0.03192541,122210.0,122200.0,0.37570779]
[1759571774622,0.03192541,122210.0,122200.0,0.60483118]
[1759571775489,0.68160984,122210.0,122200.0,0.24549]
[1759571775730,0.68160984,122210.0,122200.0,0.47569]
[1759571775731,0.66530584,122210.0,122200.0,0.47569]
[1759571775966,0.30831994,122210.0,122200.0,0.47645]
[1759571776811,0.30131994,122210.0,122200.0,0.47645]
[1759571777212,0.31031994,122210.0,122200.0,0.47745]
[1759571778245,0.31731994,122210.0,122200.0,0.47745]
[1759571779293,0.31731994,122210.0,122200.0,0.24649]
[1759571779493,0.31731994,122210.0,122200.0,0.47745]
[1759571780966,0.31731994,122210.0,122200.0,0.24649]
[1759571780967,0.69886559,122210.0,122200.0,0.24649]
[1759571781095,0.69886559,122210.0,122200.0,0.47745]
[1759571781306,0.31731994,122210.0,122200.0,0.47745]
[1759571783266,0.34747184,122210.0,122200.0,0.24649]
[1759571783455,0.34747184,122210.0,122200.0,0.47757]
[1759571792256,0.34747184,122210.0,122200.0,0.24649]
[1759571792476,0.34747184,122210.0,122200.0,0.47749]
[1759571792901,0.43168591,122210.0,122200.0,0.47749]
[1759571795376,0.43168591,122210.0,122200.0,0.47745]
[1759571799246,1.15323156,122210.0,122200.0,0.24649]
[1759571799702,1.15323156,122210.0,122200.0,0.47745]
[1759571800249,1.15323156,122210.0,122200.0,0.24649]
[1759571800712,1.15323156,122210.0,122200.0,0.47745]
[1759571802993,0.77168591,122210.0,122200.0,0.47745]
[1759571803269,1.15323156,122210.0,122200.0,0.47745]
[1759571804183,0.77168591,122210.0,122200.0,0.47745]
[1759571806131,0.18492906,122200.0,122190.0,2.09031176]
[1759571806308,0.24882818,122200.0,122190.0,2.069098]
[1759571806509,0.25198818,122200.0,122190.0,2.069098]
[1759571806709,0.25198818,122200.0,122190.0,2.06930202]
[1759571806934,0.27655155,122200.0,122190.0,2.06930202]
[1759571807342,0.28055155,122200.0,122190.0,2.30122202]
[1759571807513,0.28455155,122200.0,122190.0,2.30122202]
[1759571807920,0.28139155,122200.0,122190.0,2.30122202]
[1759571808261,0.28455155,122200.0,122190.0,2.30122202]
[1759571816274,0.28455155,122200.0,122190.0,2.34525562]
[1759571819069,0.30090913,122200.0,122190.0,2.34525562]
[1759571819625,0.30090913,122200.0,122190.0,2.34521562]
[1759571820048,0.30090913,122200.0,122190.0,2.11433562]
[1759571820400,0.73033131,122200.0,122190.0,2.11433562]
[1759571820540,0.73033131,122200.0,122190.0,2.34521562]
[1759571821359,0.28139155,122200.0,122190.0,2.34521562]
[1759571821564,0.27935155,122200.0,122190.0,2.34521562]
[1759571822091,0.28442155,122200.0,122190.0,2.34521562]
[1759571824336,0.30427696,122200.0,122190.0,2.34521562]
[1759571825368,0.30636696,122200.0,122190.0,2.34521562]
[1759571825576,0.30427696,122200.0,122190.0,2.34521562]
[1759571825822,0.30636696,122200.0,122190.0,2.34521562]
[1759571825961,0.30934696,122200.0,122190.0,2.34521562]
[1759571826472,0.30636696,122200.0,122190.0,2.34521562]
[1759571826666,0.30427696,122200.0,122190.0,2.34521562]
[1759571827096,0.30636696,122200.0,122190.0,2.34521562]
[1759571827664,0.30934696,122200.0,122190.0,2.34521562]
[1759571827869,0.30636696,122200.0,122190.0,2.34521562]
[1759571828270,0.30934696,122200.0,122190.0,2.34521562]
[1759571828472,0.30427696,122200.0,122190.0,2.34521562]
[1759571830161,0.30636696,122200.0,122190.0,2.34521562]
[1759571830350,0.30427696,122200.0,122190.0,2.34521562]
[1759571831968,0.30636696,122200.0,122190.0,2.34521562]
[1759571832783,0.30427696,122200.0,122190.0,2.34521562]
[1759571834658,0.30427696,122200.0,122190.0,2.30118202]
[1759571837901,0.30636696,122200.0,122190.0,2.30118202]
[1759571838099,0.30934696,122200.0,122190.0,2.30118202]
[1759571838726,0.30934696,122200.0,122190.0,2.07030202]
[1759571838934,0.30934696,122200.0,122190.0,2.30110202]
[1759571847925,0.30934696,122200.0,122190.0,2.30106202]
[1759571850179,0.30934696,122200.0,122190.0,2.13298381]
[1759571854205,0.30934696,122200.0,122190.0,1.90222381]
[1759571854401,0.30934696,122200.0,122190.0,2.13298381]
[1759571858432,0.30934696,122200.0,122190.0,1.90222381]
[1759571858668,0.30934696,122200.0,122190.0,2.13294381]
[1759571874476,0.30427696,122200.0,122190.0,2.13294381]
[1759571875273,0.30623696,122200.0,122190.0,2.13294381]
[1759571876570,0.30934696,122200.0,122190.0,2.13294381]
[1759571879503,0.30623696,122200.0,122190.0,2.13294381]
[1759571880456,0.30941696,122200.0,122190.0,2.13294381]
[1759571880664,0.30427696,122200.0,122190.0,2.13294381]
[1759571881467,0.30630696,122200.0,122190.0,2.13294381]
[1759571884875,0.30630696,122200.0,122190.0,2.10794381]
[1759571885490,0.30948696,122200.0,122190.0,2.10794381]
[1759571886562,0.30427696,122200.0,122190.0,2.10794381]
[1759571887995,0.30630696,122200.0,122190.0,2.10794381]
[1759571889230,0.30948696,122200.0,122190.0,2.10794381]
[1759571891534,0.30630696,122200.0,122190.0,1.91848626]
[1759571899186,0.30427696,122200.0,122190.0,1.91848626]
[1759571900807,0.30630696,122200.0,122190.0,1.91848626]
[1759571902593,0.30427696,122200.0,122190.0,1.91848626]
[1759571903645,0.30630696,122200.0,122190.0,1.91848626]
[1759571904693,0.30427696,122200.0,122190.0,1.91848626]
[1759571914510,0.14061084,122200.0,122190.0,1.91848626]
[1759571914713,0.30427696,122200.0,122190.0,1.91848626]
[1759571927589,0.14061084,122200.0,122190.0,1.91848626]
[1759571927811,0.14061084,122200.0,122190.0,1.97699773]
[1759571928002,0.14061084,122200.0,122190.0,2.06203773]
[1759571929220,0.14061084,122200.0,122190.0,2.00332626]
[1759571930950,0.11604747,122200.0,122190.0,2.00332626]
[1759571931154,0.14060603,122200.0,122190.0,2.00332626]
[1759571931358,0.11604747,122200.0,122190.0,2.00332626]
[1759571932609,0.03292541,122200.0,122190.0,2.00332626]
[1759571933032,0.03292541,122200.0,122190.0,2.22571724]
[1759571933469,0.03292541,122200.0,122190.0,2.25027456]
[1759571934079,0.02892541,122200.0,122190.0,2.25027456]
[1759571934265,0.02592541,122200.0,122190.0,2.16419456]
[1759571934620,0.02792541,122200.0,122190.0,2.25023456]
[1759571936080,0.003,122200.0,122190.0,1.93471456]
[1759571936285,0.003,122200.0,122190.0,2.25023456]
[1759571936425,0.003,122200.0,122190.0,6.87235356]
[1759571936828,0.003,122200.0,122190.0,6.55683356]
[1759571937054,0.003,122200.0,122190.0,6.87235356]
[1759571948851,0.003,122200.0,122190.0,6.78727356]
[1759571949065,0.003,122200.0,122190.0,6.87231356]
[1759571949463,0.003,122200.0,122190.0,6.55683356]
[1759571949717,0.003,122200.0,122190.0,6.87231356]
[1759571950321,0.003,122200.0,122190.0,6.78727356]
[1759571950523,0.003,122200.0,122190.0,6.87231356]
[1759571951533,0.003,122200.0,122190.0,6.55683356]
[1759571951770,0.003,122200.0,122190.0,6.87227356]
[1759571953711,0.003,122200.0,122190.0,6.55683356]
[1759571953927,0.003,122200.0,122190.0,6.87227356]
[1759571956115,0.003,122200.0,122190.0,6.49812209]
[1759571956338,0.003,122200.0,122190.0,6.81356209]
[1759571959192,0.003,122200.0,122190.0,6.72852209]
[1759571959438,0.003,122200.0,122190.0,6.49812209]
[1759571959639,0.00502,122200.0,122190.0,6.72852209]
[1759571959883,0.003,122200.0,122190.0,6.81356209]
[1759571961815,0.00502,122200.0,122190.0,6.81356209]
[1759571961956,0.003,122200.0,122190.0,6.81356209]
[1759571962366,0.003,122200.0,122190.0,6.88695143]
[1759571962367,0.00502,122200.0,122190.0,6.88695143]
[1759571962595,0.003,122200.0,122190.0,6.88695143]
[1759571962997,0.00502,122200.0,122190.0,6.88695143]
[1759571963407,0.003,122200.0,122190.0,6.88695143]
[1759571976179,0.00802,122200.0,122190.0,6.88695143]
[1759571976354,0.003,122200.0,122190.0,6.88695143]
[1759571978942,0.003,122200.0,122190.0,7.13246143]
[1759571980774,0.003,122200.0,122190.0,6.81702143]
[1759571980971,0.003,122200.0,122190.0,7.13246143]
[1759571981477,0.00802,122200.0,122190.0,7.04742143]
[1759571981626,0.00802,122200.0,122190.0,7.13246143]
[1759571981832,0.00498,122200.0,122190.0,7.05907209]
[1759571982034,0.00802,122200.0,122190.0,6.74363209]
[1759571982241,0.00802,122200.0,122190.0,2.43695309]
[1759571982759,0.003,122200.0,122190.0,2.12151309]
[1759571982973,0.003,122200.0,122190.0,2.43695309]
[1759571983715,0.003,122200.0,122190.0,2.12151309]
[1759571983921,0.003,122200.0,122190.0,2.43695309]
[1759571984350,0.003,122200.0,122190.0,2.12151309]
[1759571984554,0.003,122200.0,122190.0,2.43695309]
[1759571985605,0.003,122200.0,122190.0,2.12151309]
[1759571985934,0.003,122200.0,122190.0,2.43695309]
[1759571986363,0.003,122200.0,122190.0,2.12151309]
[1759571986573,0.003,122200.0,122190.0,2.43695309]
[1759571987176,0.003,122200.0,122190.0,2.49580409]
[1759571987301,0.003,122200.0,122190.0,2.41076409]
[1759571987509,0.003,122200.0,122190.0,2.49580409]
[1759571987751,0.003,122200.0,122190.0,2.41076409]
[1759571987970,0.003,122200.0,122190.0,2.49580409]
[1759571988989,0.00802,122200.0,122190.0,2.41076409]
[1759571989282,0.00802,122200.0,122190.0,2.49580409]
[1759571990028,0.00498,122200.0,122190.0,2.18036409]
[1759571990235,0.00498,122200.0,122190.0,2.49580409]
[1759571990611,0.003,122200.0,122190.0,2.49580409]
[1759571991739,0.003,122200.0,122190.0,2.18036409]
[1759571992038,0.003,122200.0,122190.0,2.49580409]
[1759571992243,0.03294541,122200.0,122190.0,2.01668458]
[1759571992445,0.03294541,122200.0,122190.0,2.49580409]
[1759571993245,0.02990541,122200.0,122190.0,2.49580409]
[1759571993468,0.03294541,122200.0,122190.0,2.49580409]
[1759571994033,0.02990541,122200.0,122190.0,2.49580409]
[1759571994207,0.02792541,122200.0,122190.0,2.49580409]
[1759571994598,0.02792541,122200.0,122190.0,2.18036409]
[1759571994801,0.02792541,122200.0,122190.0,2.49580409]
[1759571997369,0.02792541,122200.0,122190.0,2.33212458]
[1759571997597,0.02792541,122200.0,122190.0,2.49580409]
[1759571998688,0.03294541,122200.0,122190.0,2.49580409]
[1759571999313,0.02990541,122200.0,122190.0,2.49580409]
[1759571999734,0.02792541,122200.0,122190.0,2.49580409]
[1759572000472,0.02792541,122200.0,122190.0,2.33212458]
[1759572000674,0.03317541,122200.0,122190.0,2.24708458]
[1759572000878,0.03317541,122200.0,122190.0,2.33212458]
[1759572001085,0.03317541,122200.0,122190.0,2.01668458]
[1759572001219,0.27996359,122200.0,122190.0,2.30756726]
[1759572001631,0.30452236,122200.0,122190.0,2.30756726]
[1759572001853,0.30452236,122200.0,122190.0,1.99212726]
[1759572002180,0.14085624,122200.0,122190.0,2.30756726]
[1759572002568,0.30452236,122200.0,122190.0,2.30756726]
[1759572002987,0.30452236,122200.0,122190.0,1.99212726]
[1759572003217,0.30452236,122200.0,122190.0,2.16367626]
[1759572003372,0.30452236,122200.0,122190.0,2.24871626]
[1759572005436,0.30452236,122200.0,122190.0,1.93327626]
[1759572005727,0.30452236,122200.0,122190.0,2.24871626]
[1759572010935,0.30452236,122200.0,122190.0,1.93327626]
[1759572011139,0.30452236,122200.0,122190.0,2.24871626]
[1759572017332,0.30452236,122200.0,122190.0,1.93327626]
[1759572017703,0.30452236,122200.0,122190.0,2.24871626]
[1759572021574,0.30452236,122200.0,122190.0,1.93327626]
[1759572021787,0.30452236,122200.0,122190.0,2.24871626]
[1759572023907,0.30452236,122200.0,122190.0,1.93327626]
[1759572024125,0.30452236,122200.0,122190.0,2.24871626]
[1759572028853,0.30452236,122200.0,122190.0,1.93327626]
[1759572029055,0.30452236,122200.0,122190.0,2.24871626]
[1759572034985,0.57312236,122200.0,122190.0,2.24871626]
[1759572043922,0.57312236,122200.0,122190.0,1.93327626]
[1759572044118,0.57312236,122200.0,122190.0,2.16367626]
[1759572044335,0.57312236,122200.0,122190.0,2.24871626]
[1759572045352,0.57312236,122200.0,122190.0,2.01831626]
[1759572045550,0.57312236,122200.0,122190.0,2.24871626]
[1759572054901,0.57312236,122200.0,122190.0,1.93327626]
[1759572055066,0.57312236,122200.0,122190.0,2.24871626]
[1759572057291,0.30452236,122200.0,122190.0,2.24871626]
[1759572066978,0.30452236,122200.0,122190.0,2.16367626]
[1759572067597,0.57312236,122200.0,122190.0,2.16367626]
[1759572070718,0.57312236,122200.0,122190.0,1.96585808]
[1759572071202,0.29927236,122200.0,122190.0,1.96585808]
[1759572074837,0.29927236,122200.0,122190.0,2.01000701]
[1759572078683,0.27471359,122200.0,122190.0,2.01000701]
[1759572080749,0.27471359,122200.0,122190.0,1.96585808]
[1759572082039,0.27471359,122200.0,122190.0,2.02470908]
[1759572082262,0.11104747,122200.0,122190.0,2.02470908]
[1759572084353,0.27471359,122200.0,122190.0,2.02470908]
[1759572084780,0.11104747,122200.0,122190.0,2.02470908]
[1759572086793,0.11104747,122200.0,122190.0,1.79430908]
[1759572086997,0.11104747,122200.0,122190.0,2.10974908]
[1759572088944,0.27471359,122200.0,122190.0,1.79430908]
[1759572089153,0.27471359,122200.0,122190.0,2.10974908]
[1759572089543,0.27471359,122200.0,122190.0,2.02470908]
[1759572089757,0.27471359,122200.0,122190.0,2.10974908]
[1759572091545,0.11104747,122200.0,122190.0,2.10974908]
[1759572095122,0.02792541,122200.0,122190.0,2.27342859]
[1759572095339,0.02792541,122200.0,122190.0,6.89554759]
[1759572095551,0.003,122200.0,122190.0,6.83669659]
[1759572095766,0.003,122200.0,122190.0,6.88054771]
[1759572095977,0.003,122200.0,122190.0,7.29393705]
[1759572096219,0.003,122200.0,122190.0,6.97849705]
[1759572096426,0.003,122200.0,122190.0,6.95389705]
[1759572099075,0.001,122200.0,122190.0,6.95289705]
[1759572099305,0.00054767,122210.0,122200.0,0.16366612]
[1759572099507,0.00054767,122210.0,122200.0,5.26164512]
[1759572100143,0.00054767,122210.0,122200.0,5.37123838]
[1759572100564,0.00354767,122210.0,122200.0,5.44562772]
[1759572101526,0.00354767,122210.0,122200.0,6.12582772]
[1759572101728,0.00454767,122210.0,122200.0,6.12582772]
[1759572102775,0.00154767,122210.0,122200.0,6.12482772]
[1759572103192,0.00254767,122210.0,122200.0,6.12582772]
[1759572103396,0.00154767,122210.0,122200.0,6.12582772]
[1759572103849,0.00154767,122210.0,122200.0,6.12682772]
[1759572105484,0.00154767,122210.0,122200.0,6.20994978]
[1759572108678,0.00154767,122210.0,122200.0,6.20986978]
[1759572109733,0.00154767,122210.0,122200.0,5.55434978]
[1759572110212,0.00154767,122210.0,122200.0,6.20986978]
[1759572110642,0.00154767,122210.0,122200.0,6.22916486]
[1759572111089,0.00154767,122210.0,122200.0,5.57364486]
[1759572111341,0.00154767,122210.0,122200.0,6.22916486]
[1759572112513,0.00154767,122210.0,122200.0,5.57364486]
[1759572112723,0.00154767,122210.0,122200.0,6.22916486]
[1759572113157,0.00154767,122210.0,122200.0,5.57364486]
[1759572113373,0.00154767,122210.0,122200.0,6.22916486]
[1759572117064,0.00154767,122210.0,122200.0,5.57364486]
[1759572117291,0.00154767,122210.0,122200.0,6.22916486]
[1759572118289,0.00154767,122210.0,122200.0,6.14412486]
[1759572118432,0.00154767,122210.0,122200.0,6.22916486]
[1759572119648,0.00154767,122210.0,122200.0,5.57364486]
[1759572119866,0.00154767,122210.0,122200.0,6.22908486]
[1759572120366,0.00154767,122210.0,122200.0,6.22904486]
[1759572121104,0.00154767,122210.0,122200.0,5.57364486]
[1759572121322,0.00154767,122210.0,122200.0,6.22904486]
[1759572123509,0.00154767,122210.0,122200.0,6.15565552]
[1759572124528,0.0001144,122210.0,122200.0,6.15565552]
[1759572126338,0.0001144,122210.0,122200.0,5.50025552]
[1759572126576,0.0001144,122210.0,122200.0,6.25840059]
[1759572126919,0.0021044,122210.0,122200.0,5.60300059]
[1759572127124,0.0052044,122210.0,122200.0,6.17527853]
[1759572127336,0.0052044,122210.0,122200.0,5.41713346]
[1759572127539,0.0052044,122210.0,122200.0,6.07253346]
[1759572128192,0.0001144,122210.0,122200.0,6.07253346]
[1759572128609,0.0001144,122210.0,122200.0,6.17527853]
[1759572134330,8.5e-06,122210.0,122200.0,6.17527853]
[1759572136040,8.5e-06,122210.0,122200.0,6.00875787]
[1759572136245,8.5e-06,122210.0,122200.0,6.06967892]
[1759572136477,8.5e-06,122210.0,122200.0,6.1432482]
[1759572136676,0.0019985,122210.0,122200.0,6.1432482]
[1759572137268,8.5e-06,122210.0,122200.0,6.1432482]
[1759572137485,8.5e-06,122210.0,122200.0,6.06967892]
[1759572138050,0.0019985,122210.0,122200.0,5.64455892]
[1759572138258,0.0050985,122210.0,122200.0,6.06967892]
[1759572138492,0.0019985,122210.0,122200.0,6.06967892]
[1759572138678,8.5e-06,122210.0,122200.0,6.06967892]
[1759572142491,8.5e-06,122210.0,122200.0,6.1432482]
[1759572142697,8.5e-06,122210.0,122200.0,5.4878482]
[1759572142905,8.5e-06,122210.0,122200.0,6.06967892]
[1759572145969,0.02492541,122230.0,122220.0,0.16363933]
[1759572146192,0.02492541,122230.0,122220.0,0.46748674]
[1759572146440,0.02691541,122230.0,122220.0,0.46748674]
[1759572146685,0.02732328,122230.0,122220.0,0.46748674]
[1759572146893,0.03042328,122230.0,122220.0,0.46748674]
[1759572147323,0.03442328,122230.0,122220.0,0.46748674]
[1759572147895,0.03132328,122230.0,122220.0,0.46748674]
[1759572148256,0.02933328,122230.0,122220.0,0.46848674]
[1759572148457,0.03633328,122230.0,122220.0,0.46848674]
[1759572150298,0.03633328,122230.0,122220.0,0.30484741]
[1759572150517,0.03633328,122230.0,122220.0,0.46848674]
[1759572150707,0.04142328,122230.0,122220.0,0.46848674]
[1759572151437,0.03633328,122230.0,122220.0,0.46848674]
[1759572152814,0.03633328,122230.0,122220.0,0.55348674]
[1759572155277,0.03842328,122230.0,122220.0,0.55348674]
[1759572155487,0.03633328,122230.0,122220.0,0.55348674]
[1759572157181,0.04142328,122230.0,122220.0,0.55348674]
[1759572158087,0.03633328,122230.0,122220.0,0.55348674]
[1759572158904,0.03633328,122230.0,122220.0,0.23820674]
[1759572159035,0.03633328,122230.0,122220.0,0.55348674]
[1759572160914,0.03842328,122230.0,122220.0,0.55348674]
[1759572161480,0.03633328,122230.0,122220.0,0.55348674]
[1759572161777,0.04142328,122230.0,122220.0,0.55348674]
[1759572162625,0.03842328,122230.0,122220.0,0.55348674]
[1759572162824,0.03633328,122230.0,122220.0,0.55348674]
[1759572163181,0.03842328,122230.0,122220.0,0.55348674]
[1759572163548,0.03633328,122230.0,122220.0,0.55348674]
[1759572163771,0.03842328,122230.0,122220.0,0.55348674]
[1759572163931,0.04142328,122230.0,122220.0,0.55348674]
[1759572164376,0.03633328,122230.0,122220.0,0.55348674]
[1759572166819,0.03842328,122230.0,122220.0,0.55348674]
[1759572167407,0.04142328,122230.0,122220.0,0.55348674]
[1759572167700,0.03842328,122230.0,122220.0,0.55348674]
[1759572167904,0.03633328,122230.0,122220.0,0.55348674]
[1759572170427,0.03842328,122230.0,122220.0,0.55348674]
[1759572170973,0.03633328,122230.0,122220.0,0.23820674]
[1759572171171,0.03633328,122230.0,122220.0,0.55348674]
[1759572175598,0.03633328,122230.0,122220.0,0.47991933]
[1759572176824,0.03633328,122230.0,122220.0,0.50447078]
[1759572182190,0.03633328,122230.0,122220.0,0.41947078]
[1759572182420,0.03633328,122230.0,122220.0,0.50447078]
[1759572182632,0.03633328,122230.0,122220.0,0.57803819]
[1759572183709,0.03836328,122230.0,122220.0,0.26275819]
[1759572183924,0.04138328,122230.0,122220.0,0.57803819]
[1759572184505,0.03836328,122230.0,122220.0,0.57803819]
[1759572184735,0.03633328,122230.0,122220.0,0.57803819]
[1759572187164,0.03633328,122230.0,122220.0,0.26275819]
[1759572187393,0.03633328,122230.0,122220.0,0.57803819]
[1759572202960,0.03633328,122230.0,122220.0,0.82349819]
[1759572212541,0.03633328,122230.0,122220.0,0.50821819]
[1759572212748,0.03633328,122230.0,122220.0,0.82345819]
[1759572215971,0.03849328,122230.0,122220.0,0.82345819]
[1759572216172,0.03633328,122230.0,122220.0,0.82345819]
[1759572216324,0.03633328,122230.0,122220.0,0.50821819]
[1759572216529,0.03633328,122230.0,122220.0,0.82345819]
[1759572217079,0.03633328,122230.0,122220.0,0.50821819]
[1759572217344,0.03633328,122230.0,122220.0,0.82345819]
[1759572236794,0.01140787,122230.0,122220.0,0.82345819]
[1759572248110,0.01140787,122230.0,122220.0,5.44272319]
[1759572248336,0.00133687,122230.0,122220.0,5.79227784]
[1759572248561,0.00133687,122230.0,122220.0,5.89502291]
[1759572249223,0.00133687,122230.0,122220.0,5.89402291]
[1759572249439,0.02492541,122250.0,122240.0,0.16361256]
[1759572249662,0.02492541,122250.0,122240.0,5.25853756]
[1759572250276,0.02492541,122250.0,122240.0,5.28308429]
[1759572250697,0.02497452,122250.0,122240.0,5.28308429]
[1759572251556,0.02897452,122250.0,122240.0,5.34283549]
[1759572252150,0.02897452,122250.0,122240.0,5.35288436]
[1759572252521,0.02997452,122250.0,122240.0,5.35288436]
[1759572253401,0.02997452,122250.0,122240.0,5.12264436]
[1759572253626,0.02997452,122250.0,122240.0,0.81857936]
[1759572254378,0.03202452,122250.0,122240.0,0.50337936]
[1759572254643,0.03506452,122250.0,122240.0,0.3397668]
[1759572254863,0.03506452,122250.0,122240.0,0.6549668]
[1759572255068,0.03506452,122250.0,122240.0,0.81857936]
[1759572255300,0.03547228,122250.0,122240.0,0.81857936]
[1759572256588,0.03038228,122250.0,122240.0,0.81857936]
[1759572256993,0.03547228,122250.0,122240.0,0.81857936]
[1759572258825,0.03243228,122250.0,122240.0,0.81857936]
[1759572259027,0.19603146,122250.0,122240.0,0.81857936]
[1759572260142,0.03243228,122250.0,122240.0,0.81857936]
[1759572260498,0.03547228,122250.0,122240.0,0.81857936]
[1759572260705,0.19907146,122250.0,122240.0,0.6549668]
[1759572260915,0.19907146,122250.0,122240.0,0.81857936]
[1759572261230,0.19398146,122250.0,122240.0,0.81857936]
[1759572262123,0.19398146,122250.0,122240.0,0.5699668]
[1759572262329,0.19398146,122250.0,122240.0,0.6549668]
[1759572262544,0.19398146,122250.0,122240.0,0.81857936]
[1759572262750,0.19398146,122250.0,122240.0,0.6549668]
[1759572263123,0.19398146,122250.0,122240.0,0.81857936]
[1759572264361,0.19398146,122250.0,122240.0,0.6549668]
[1759572264588,0.19398146,122250.0,122240.0,0.81857936]
[1759572265153,0.19398146,122250.0,122240.0,0.6549668]
[1759572265557,0.19603146,122250.0,122240.0,0.81857936]
[1759572265767,0.19907146,122250.0,122240.0,0.81857936]
[1759572265936,0.19907146,122250.0,122240.0,0.6549668]
[1759572266136,0.19603146,122250.0,122240.0,0.6549668]
[1759572266375,0.19398146,122250.0,122240.0,0.6549668]
[1759572266733,0.19398146,122250.0,122240.0,0.81857936]
[1759572267152,0.19907146,122250.0,122240.0,0.81857936]